fUST/lending_fUST_20240820
["ID","MTS","AMOUNT","RATE_DAILY","PERIOD"]
[335340484,1724133031898,-868.49,0.00012782,2]
[335340529,1724133037777,-5000.0,9.321e-05,2]
[335340531,1724133037787,-2120.97688518,0.00012782,2]
[335340533,1724133037796,-811.47145884,0.00012782,2]
[335340535,1724133037806,-553.24680566,0.00012934,2]
[335340538,1724133037818,-154.74467129,0.00012971,2]
[335340540,1724133037829,-728.34861839,0.00012971,2]
[335340542,1724133037838,-188.58516866,0.00012985,2]
[335340544,1724133037848,-285.4487675,0.00012985,2]
[335340546,1724133037859,-404.99841247,0.00012989,2]
[335340548,1724133037870,-155.37804016,0.00012989,2]
[335340550,1724133037880,-1237.07519956,0.00012989,2]
[335340552,1724133037889,-180.81152876,0.00012989,2]
[335340554,1724133037900,-399.86116849,0.00012989,2]
[335340556,1724133037909,-250.43122441,0.00012991,2]
[335340558,1724133037918,-210.56315453,0.00012991,2]
[335340560,1724133037928,-161.53810434,0.00012991,2]
[335340563,1724133037942,-155.18235923,0.00012991,2]
[335340565,1724133037952,-521.35824671,0.00012991,2]
[335340567,1724133037961,-301.56944091,0.00012999,2]
[335340569,1724133037970,-0.87046806,0.00012999,2]
[335340571,1724133037983,-284.76635273,0.00012999,2]
[335340573,1724133037992,-636.72640188,0.00013025,2]
[335340575,1724133038003,-534.91146023,0.00013025,2]
[335340577,1724133038017,-534.91146023,0.00013025,2]
[335340579,1724133038028,-217.11203843,0.00013051,2]
[335340581,1724133038038,-200.38569596,0.00013051,2]
[335340583,1724133038048,-231.92297549,0.00013051,2]
[335340585,1724133038058,-164.39489072,0.00013051,2]
[335340587,1724133038069,-172.09828,0.00013264,2]
[335340589,1724133038079,-154.74467129,0.00013333,2]
[335340590,1724133038089,-810.66321171,0.00013333,2]
[335340591,1724133038100,-832.8410323,0.00013426,2]
[335340592,1724133038110,-172.09828,0.00013494,2]
[335340593,1724133038120,-174.72672334,0.00013496,2]
[335340594,1724133038130,-224.26699925,0.00013697,2]
[335340595,1724133038140,-154.74467129,0.00013698,2]
[335340596,1724133038150,-172.09828,0.00013725,2]
[335340597,1724133038159,-155.76697569,0.00013792,2]
[335340598,1724133038169,-172.09828,0.00013955,2]
[335340599,1724133038179,-186.688905,0.00014247,2]
[335340600,1724133038192,-712.5,0.00014247,2]
[335340601,1724133038202,-414.940151,0.00015778,2]
[335340602,1724133038212,-207.5740843,0.00015778,2]
[335340603,1724133038221,-240.399514,0.0001589,2]
[335340604,1724133038232,-5329.36596513,0.0001613,2]
[335340605,1724133038242,-953.45396956,0.00016181,2]
[335340606,1724133038252,-1838.36847267,0.00016338,2]
[335340607,1724133038262,-2517.8564729,0.00016399,2]
[335340608,1724133038271,-217.74395838,0.000164,2]
[335340609,1724133038283,-23934.60829727,0.000164,2]
[335340610,1724133038292,-1671.98997101,0.000164,2]
[335340611,1724133038302,-154.74467129,0.000164,2]
[335340612,1724133038311,-2199.21644118,0.000164,2]
[335340613,1724133038321,-500.0,0.000164,2]
[335340614,1724133038330,-977.46281726,0.000164,2]
[335340615,1724133038343,-271.49322017,0.00016417,2]
[335340616,1724133038352,-163.95341863,0.00016417,2]
[335340617,1724133038362,-500.0,0.00016417,2]
[335340618,1724133038372,-500.0,0.00016417,2]
[335340619,1724133038381,-500.0,0.00016417,2]
[335340620,1724133038391,-161.90109194,0.00016417,2]
[335340621,1724133038400,-500.0,0.00016417,2]
[335340622,1724133038410,-500.0,0.00016417,2]
[335340623,1724133038419,-53004.79153838,0.00016417,2]
[335340624,1724133038430,-27385.72023661,0.00016417,2]
[335340647,1724133042898,-1482.54829005,0.00016417,2]
[335340726,1724133563097,26589.58981274,0.000203,120]
[335340742,1724133844160,1000.0,0.00021,120]
[335340782,1724134232008,-3096.7700446,8.861e-05,2]
[335340784,1724134232018,-273.37336231,9.429e-05,2]
[335340786,1724134232028,-341.50733323,9.8e-05,2]
[335340788,1724134232038,-188.58516866,0.00010081,2]
[335340790,1724134232048,-182.1,0.00010959,2]
[335340792,1724134232057,-151.75,0.00010959,2]
[335340794,1724134232067,-758.77,0.00010959,2]
[335340796,1724134232077,-181.22986714,0.00011621,2]
[335340798,1724134232086,-300.0,0.0001255,2]
[335340800,1724134232095,-300.0,0.0001255,2]
[335340803,1724134232105,-5755.8334859,0.00012551,2]
[335340805,1724134232115,-810.66321171,0.00012898,2]
[335340807,1724134232126,-154.74467129,0.00012934,2]
[335340809,1724134232135,-154.74467129,0.00012971,2]
[335340812,1724134232146,-665.53459983,0.00012989,2]
[335340815,1724134232156,-665.53459983,0.00012989,2]
[335340817,1724134232165,-521.35824671,0.00012989,2]
[335340819,1724134232175,-248.13578717,0.00012999,2]
[335340821,1724134232184,-811.47145884,0.00012999,2]
[335340823,1724134232194,-258.21281151,0.00012999,2]
[335340825,1724134232203,-494.86793798,0.00013,13]
[335340827,1724134232213,-158.1221147,0.00013697,2]
[335340829,1724134232222,-3000.0,0.00013699,2]
[335340831,1724134232232,-302.0,0.00013769,2]
[335340833,1724134232241,-526.28132008,0.00013792,2]
[335340835,1724134232251,-155.0912455,0.00013971,2]
[335340837,1724134232262,-534.91146023,0.00013971,2]
[335340839,1724134232271,-1000.0,0.00014,14]
[335340841,1724134232280,-186.686626,0.00014247,2]
[335340843,1724134232290,-676.875,0.00014247,2]
[335340845,1724134232299,-415.79685701,0.00014519,2]
[335340847,1724134232309,-408.92946582,0.00014519,2]
[335340849,1724134232325,-242.96137698,0.00014519,2]
[335340851,1724134232334,-306.0,0.00014877,2]
[335340853,1724134232343,-1604.58008714,0.00015,15]
[335340878,1724134238028,-810.66321171,0.00012898,2]
[335340880,1724134238038,-624.44497217,0.00014519,2]
[335340882,1724134238047,-8395.41991286,0.00015,15]
[335340883,1724134238056,-719.58551261,0.00015722,2]
[335340885,1724134238065,-228.379538,0.0001589,2]
[335340887,1724134238075,-10000.0,0.00016,16]
[335340890,1724134238085,-5329.36596513,0.00016134,2]
[335340892,1724134238094,-153.0,0.00016234,2]
[335340894,1724134238103,-306.0,0.00016234,2]
[335340896,1724134238112,-153.0,0.00016234,2]
[335340898,1724134238122,-153.0,0.00016234,2]
[335340900,1724134238131,-160.0,0.00016307,3]
[335340902,1724134238140,-1654.53162543,0.00016338,2]
[335340904,1724134238150,-415.94531244,0.00016338,2]
[335340906,1724134238159,-500.0,0.00016397,2]
[335340908,1724134238168,-500.0,0.00016397,2]
[335340910,1724134238177,-500.0,0.00016397,2]
[335340912,1724134238187,-500.0,0.00016397,2]
[335340914,1724134238196,-462.71853989,0.00016397,2]
[335340916,1724134238209,-37.28146011,0.00016397,2]
[335340918,1724134238219,-217.73648774,0.00016397,2]
[335340920,1724134238229,-160.92736459,0.00016397,2]
[335341085,1724135432244,-784.11204937,9.51e-05,2]
[335341177,1724135440432,-3370.16836899,9.51e-05,2]
[335341222,1724135443307,-845.71958164,9.51e-05,2]
[335341223,1724135443318,-300.0,0.00010958,2]
[335341224,1724135443328,-300.0,0.00010958,2]
[335341225,1724135443337,-249.99,0.00010959,2]
[335341226,1724135443347,-217.76,0.00010959,2]
[335341227,1724135443357,-340.0,0.00010959,2]
[335341228,1724135443366,-340.0,0.00010959,2]
[335341229,1724135443376,-226.67,0.00010959,2]
[335341230,1724135443386,-188.89,0.00010959,2]
[335341231,1724135443395,-157.41,0.00010959,2]
[335341232,1724135443405,-782.99622236,0.00010959,2]
[335341233,1724135443417,-4.08377764,0.00010959,2]
[335341234,1724135443427,-4662.5235348,0.0001266,2]
[335341235,1724135443437,-3474.32371617,0.00012782,2]
[335341276,1724136265526,500.0,0.00021,120]
[335341296,1724136591664,500.0,0.00021,120]
[335341336,1724136632323,-656.90878816,7.754e-05,2]
[335341378,1724136638424,-18.85983426,7.754e-05,2]
[335341379,1724136638435,-1418.76551626,7.832e-05,2]
[335341380,1724136638445,-174.75672236,7.911e-05,2]
[335341381,1724136638457,-180.73325647,7.911e-05,2]
[335341382,1724136638467,-490.56454085,7.911e-05,2]
[335341383,1724136638481,-155.1696585,7.911e-05,2]
[335341384,1724136638491,-8968.71080962,8.521e-05,2]
[335341385,1724136638501,-300.0,9.752e-05,2]
[335341386,1724136638512,-8971.8297327,9.753e-05,2]
[335341388,1724136638523,-253.60961894,9.8e-05,2]
[335341390,1724136638533,-155.56838858,9.899e-05,2]
[335341392,1724136638544,-422.36012849,9.939e-05,2]
[335341393,1724136638553,-679.8976793,9.985e-05,2]
[335341395,1724136638563,-309.48934258,9.999e-05,2]
[335341397,1724136638583,-154.76012181,0.0001026,2]
[335341398,1724136638599,-188.58516866,0.00010544,2]
[335341399,1724136638611,-250.0,0.00010574,2]
[335341400,1724136638622,-250.0,0.00010603,2]
[335341401,1724136638634,-250.0,0.00010631,2]
[335341402,1724136638645,-250.0,0.0001066,2]
[335341403,1724136638656,-250.0,0.00010689,2]
[335341404,1724136638667,-250.0,0.00010718,2]
[335341405,1724136638678,-420.0,0.00010727,2]
[335341406,1724136638687,-250.0,0.00010747,2]
[335341407,1724136638696,-250.0,0.00010776,2]
[335341408,1724136638706,-250.0,0.00010805,2]
[335341409,1724136638715,-250.0,0.00010834,2]
[335341410,1724136638725,-250.0,0.00010863,2]
[335341411,1724136638735,-250.0,0.00010892,2]
[335341412,1724136638745,-250.0,0.00010921,2]
[335341413,1724136638755,-250.0,0.0001095,2]
[335341414,1724136638764,-250.0,0.00010979,2]
[335341415,1724136638775,-250.0,0.00011008,2]
[335341416,1724136638786,-250.0,0.00011037,2]
[335341417,1724136638797,-250.0,0.00011066,2]
[335341418,1724136638808,-250.0,0.00011095,2]
[335341419,1724136638818,-250.0,0.00011124,2]
[335341420,1724136638831,-154.76012181,0.00011712,2]
[335341421,1724136638842,-154.97788183,0.00011712,2]
[335341422,1724136638852,-163.43321624,0.00011712,2]
[335341423,1724136638865,-154.96980522,0.00011712,2]
[335341424,1724136638877,-665.53459983,0.00012163,2]
[335341425,1724136638887,-5329.36596513,0.00012408,2]
[335341426,1724136638898,-150.0,0.00012468,2]
[335341427,1724136638909,-851.67119967,0.00012516,2]
[335341428,1724136638919,-306.00417192,0.00012782,2]
[335341429,1724136638930,-155.30874418,0.00012886,2]
[335341430,1724136638940,-359.42614995,0.00012898,2]
[335341431,1724136638950,-684.76914244,0.000129,2]
[335341432,1724136638961,-320.67298016,0.00012934,2]
[335341433,1724136638972,-155.45245108,0.00012934,2]
[335341434,1724136638982,-157.59031405,0.00012934,2]
[335341435,1724136638994,-155.54473646,0.00012989,2]
[335341436,1724136639005,-154.76012181,0.00012991,2]
[335341437,1724136639016,-166.14799319,0.00012991,2]
[335341438,1724136639026,-303.31136667,0.00012999,2]
[335341439,1724136639036,-521.35824671,0.00012999,2]
[335341440,1724136639047,-215.53164431,0.00012999,2]
[335341441,1724136639057,-269.19707837,0.00012999,2]
[335341442,1724136639072,-636.72640188,0.00013051,2]
[335341443,1724136639082,-155.04615955,0.00013477,2]
[335341444,1724136639092,-511.67780438,0.00013496,2]
[335341445,1724136639103,-303.91507343,0.00013596,2]
[335341446,1724136639115,-547.73222334,0.00013597,2]
[335341447,1724136639126,-935.82941759,0.00013688,2]
[335341448,1724136639136,-532.23588848,0.00013688,2]
[335341449,1724136639147,-357.77977681,0.00013697,2]
[335341450,1724136639157,-151.0,0.00013699,2]
[335341451,1724136639167,-151.0,0.00013699,2]
[335341452,1724136639177,-3000.0,0.00013699,2]
[335341453,1724136639187,-238.912085,0.00013699,2]
[335341454,1724136639197,-151.0,0.00013699,2]
[335341455,1724136639208,-166.658873,0.00013699,2]
[335341456,1724136639219,-225.946949,0.00013699,2]
[335341457,1724136639229,-225.946949,0.00013699,2]
[335341458,1724136639239,-190.388187,0.00013699,2]
[335341459,1724136639249,-190.388187,0.00013699,2]
[335341460,1724136639259,-151.0,0.00013699,2]
[335341461,1724136639270,-151.0,0.00013699,2]
[335341462,1724136639279,-151.0,0.00013699,2]
[335341463,1724136639289,-245.647962,0.00013699,2]
[335341464,1724136639302,-245.647962,0.00013699,2]
[335341465,1724136639312,-151.0,0.00013699,2]
[335341466,1724136639324,-227.381272,0.00013699,2]
[335341467,1724136639335,-161.228251,0.00013699,2]
[335341468,1724136639346,-161.228251,0.00013699,2]
[335341469,1724136639356,-165.275701,0.00013699,2]
[335341470,1724136639366,-151.0,0.00013699,2]
[335341471,1724136639375,-165.275701,0.00013699,2]
[335341472,1724136639385,-151.0,0.00013699,2]
[335341473,1724136639395,-151.0,0.00013699,2]
[335341474,1724136639408,-151.0,0.00013699,2]
[335341475,1724136639418,-286.811416,0.00013699,2]
[335341476,1724136639428,-197.419122,0.00013699,2]
[335341477,1724136639438,-494.81071941,0.00014245,2]
[335341478,1724136639447,-750.0,0.00014247,2]
[335341479,1724136639458,-160.83688,0.00014247,2]
[335341480,1724136639468,-162.204175,0.00014501,2]
[335341481,1724136639477,-158.1221147,0.00014519,2]
[335341482,1724136639488,-4654.9540834,0.00015,2]
[335341483,1724136639498,-1000.0,0.00015,15]
[335341484,1724136639507,-225.946949,0.00015,2]
[335341485,1724136639517,-225.946949,0.00015,2]
[335341486,1724136639526,-190.388187,0.00015,2]
[335341487,1724136639537,-190.388187,0.00015,2]
[335341488,1724136639547,-151.0,0.00015,2]
[335341489,1724136639557,-151.0,0.00015,2]
[335341490,1724136639567,-151.0,0.00015,2]
[335341491,1724136639576,-151.0,0.00015,2]
[335341492,1724136639586,-245.647962,0.00015,2]
[335341493,1724136639596,-245.647962,0.00015,2]
[335341494,1724136639606,-151.0,0.00015,2]
[335341495,1724136639615,-161.228251,0.00015,2]
[335341496,1724136639625,-161.228251,0.00015,2]
[335341497,1724136639635,-165.275701,0.00015,2]
[335341498,1724136639645,-151.0,0.00015,2]
[335341499,1724136639655,-165.275701,0.00015,2]
[335341500,1724136639664,-151.0,0.00015,2]
[335341501,1724136639676,-151.0,0.00015,2]
[335341502,1724136639686,-151.0,0.00015,2]
[335341503,1724136639696,-151.0,0.00015068,2]
[335341504,1724136639705,-151.0,0.00015068,2]
[335341505,1724136639715,-417.95797788,0.0001549,2]
[335341506,1724136639725,-151.0,0.00015619,2]
[335341507,1724136639735,-484.9005522,0.00015683,2]
[335341508,1724136639745,-684.7691424,0.00015777,2]
[335341509,1724136639755,-271.990843,0.0001589,2]
[335341510,1724136639764,-151.0,0.00015893,2]
[335341511,1724136639774,-151.0,0.00015893,2]
[335341512,1724136639784,-151.0,0.00015893,2]
[335341513,1724136639793,-151.0,0.00015893,2]
[335341514,1724136639803,-251.205413,0.00015893,2]
[335341515,1724136639812,-245.647962,0.00015893,2]
[335341516,1724136639822,-245.647962,0.00015893,2]
[335341517,1724136639832,-245.647962,0.00015893,2]
[335341518,1724136639841,-245.647962,0.00015893,2]
[335341519,1724136639851,-151.0,0.00015893,2]
[335341520,1724136639861,-151.0,0.00015893,2]
[335341521,1724136639872,-161.228251,0.00015893,2]
[335341522,1724136639882,-161.228251,0.00015893,2]
[335341523,1724136639891,-161.228251,0.00015893,2]
[335341524,1724136639900,-161.228251,0.00015893,2]
[335341525,1724136639910,-165.275701,0.00015893,2]
[335341526,1724136639921,-165.275701,0.00015893,2]
[335341527,1724136639930,-165.275701,0.00015893,2]
[335341528,1724136639940,-165.275701,0.00015893,2]
[335341529,1724136639951,-500.0,0.00015893,2]
[335341530,1724136639962,-500.0,0.00015893,2]
[335341531,1724136639972,-500.0,0.00015893,2]
[335341532,1724136639984,-415.33040774,0.00015893,2]
[335341533,1724136639995,-236.40141646,0.00015893,2]
[335341534,1724136640005,-500.0,0.00015893,2]
[335341535,1724136640015,-500.0,0.00015893,2]
[335341536,1724136640025,-192.75890066,0.00015893,2]
[335341537,1724136640036,-500.0,0.00015893,2]
[335341538,1724136640046,-500.0,0.00015893,2]
[335341539,1724136640056,-500.0,0.00015893,2]
[335341541,1724136640069,-500.0,0.00015893,2]
[335341542,1724136640080,-500.0,0.00015893,2]
[335341543,1724136640090,-500.0,0.00015893,2]
[335341544,1724136640100,-500.0,0.00015893,2]
[335341545,1724136640112,-500.0,0.00015893,2]
[335341546,1724136640122,-500.0,0.00015893,2]
[335341547,1724136640131,-500.0,0.00015893,2]
[335341548,1724136640141,-500.0,0.00015893,2]
[335341549,1724136640150,-500.0,0.00015893,2]
[335341550,1724136640160,-500.0,0.00015893,2]
[335341551,1724136640168,-500.0,0.00015893,2]
[335341552,1724136640178,-500.0,0.00015893,2]
[335341553,1724136640187,-500.0,0.00015893,2]
[335341554,1724136640196,-500.0,0.00015893,2]
[335341555,1724136640206,-500.0,0.00015893,2]
[335341556,1724136640215,-500.0,0.00015893,2]
[335341557,1724136640224,-500.0,0.00015893,2]
[335341558,1724136640234,-488.9536915,0.00015893,2]
[335341559,1724136640243,-500.0,0.00015893,2]
[335341560,1724136640252,-500.0,0.00015893,2]
[335341561,1724136640262,-500.0,0.00015893,2]
[335341562,1724136640270,-500.0,0.00015893,2]
[335341563,1724136640280,-500.0,0.00015893,2]
[335341564,1724136640289,-500.0,0.00015893,2]
[335341565,1724136640299,-500.0,0.00015893,2]
[335341566,1724136640481,-500.0,0.00015893,2]
[335341567,1724136640492,-500.0,0.00015893,2]
[335341568,1724136640502,-151.0,0.00015894,2]
[335341569,1724136640511,-289.804601,0.00015894,2]
[335341570,1724136640520,-151.0,0.00015894,2]
[335341571,1724136640529,-151.0,0.00015894,2]
[335341572,1724136640539,-151.0,0.00015894,2]
[335341573,1724136640548,-151.0,0.00015894,2]
[335341574,1724136640558,-151.0,0.00015894,2]
[335341575,1724136640568,-151.0,0.00015894,2]
[335341576,1724136640578,-151.0,0.00015895,2]
[335341577,1724136640589,-151.0,0.00015895,2]
[335341578,1724136640598,-151.0,0.00015895,2]
[335341579,1724136640608,-15538.09166754,0.00015895,2]
[335341580,1724136640622,-3772.32738139,0.00015895,2]
[335341581,1724136640745,-154.76012181,0.0001026,2]
[335341582,1724136640755,-3437.10214328,0.00015895,2]
[335341583,1724136640766,-14444.43010559,0.00015895,2]
[335341584,1724136640776,-190.388187,0.00015896,2]
[335341585,1724136640786,-190.388187,0.00015896,2]
[335341586,1724136640794,-151.0,0.00015896,2]
[335341587,1724136640804,-151.0,0.00015896,2]
[335341588,1724136640813,-151.0,0.00015896,2]
[335341589,1724136640823,-245.647962,0.00015896,2]
[335341590,1724136640833,-245.647962,0.00015896,2]
[335341591,1724136640843,-151.0,0.00015896,2]
[335341592,1724136640852,-161.228251,0.00015896,2]
[335341593,1724136640861,-161.228251,0.00015896,2]
[335341594,1724136640871,-165.275701,0.00015896,2]
[335341595,1724136640881,-165.275701,0.00015896,2]
[335341596,1724136640890,-284.590289,0.00015896,2]
[335341597,1724136640899,-151.0,0.00015896,2]
[335341598,1724136640909,-151.0,0.00015896,2]
[335341599,1724136640919,-2292.38703115,0.000159,2]
[335341600,1724136640929,-151.0,0.00015905,2]
[335341601,1724136640938,-13.73055681,0.00015905,2]
[335341602,1724136640955,-212.21639219,0.00015905,2]
[335341603,1724136640964,-225.946949,0.00015905,2]
[335341604,1724136640974,-225.946949,0.00015905,2]
[335341605,1724136640983,-225.946949,0.00015905,2]
[335341606,1724136640998,-225.946949,0.00015905,2]
[335341607,1724136641008,-225.946949,0.00015905,2]
[335341608,1724136641018,-190.388187,0.00015905,2]
[335341609,1724136641027,-111.79837773,0.00015905,2]
[335341690,1724137832546,-860.98940774,8.669e-05,2]
[335341691,1724137832556,-669.85217744,8.769e-05,2]
[335341692,1724137832568,-4982.61711646,0.00012356,2]
[335341693,1724137832579,-300.0,0.00012675,2]
[335341694,1724137832592,-4619.9131477,0.00012676,2]
[335341695,1724137832604,-500.0,0.00012885,2]
[335341696,1724137832614,-154.99671597,0.00012898,2]
[335341697,1724137832623,-215.45082928,0.00012934,2]
[335341698,1724137832634,-898.70545475,0.00012934,2]
[335341699,1724137832644,-163.68026456,0.00012971,2]
[335341700,1724137832655,-17.7948861,0.00012971,2]
[335341701,1724137832676,-711.00001051,0.00012971,2]
[335341702,1724137832686,-210.23989812,0.00012971,2]
[335341703,1724137832696,-154.74467129,0.00012985,2]
[335341704,1724137832708,-932.58320196,0.00012985,2]
[335341705,1724137832717,-1021.27246398,0.00012985,2]
[335341706,1724137832727,-372.93180279,0.00012985,2]
[335341707,1724137832736,-780.88884995,0.00012989,2]
[335341708,1724137832746,-270.42360037,0.00012989,7]
[335341709,1724137832756,-493.30764145,0.00012989,2]
[335341710,1724137832766,-315.96864763,0.00013025,2]
[335341711,1724137832776,-164.878272,0.00013028,2]
[335341712,1724137832787,-164.878272,0.00013071,2]
[335341713,1724137832797,-164.878272,0.00013113,2]
[335341714,1724137832808,-164.878272,0.00013155,2]
[335341715,1724137832817,-164.878272,0.00013198,2]
[335341716,1724137832827,-164.878272,0.0001324,2]
[335341717,1724137832837,-164.878272,0.00013283,2]
[335341718,1724137832846,-164.878272,0.00013325,2]
[335341719,1724137832859,-188.34866886,0.00013333,2]
[335341720,1724137832870,-164.878272,0.00013368,2]
[335341721,1724137832882,-164.878272,0.0001341,2]
[335341722,1724137832892,-164.878272,0.00013452,2]
[335341723,1724137832903,-164.878272,0.00013495,2]
[335341724,1724137832913,-164.878272,0.00013537,2]
[335341725,1724137832923,-164.878272,0.0001358,2]
[335341726,1724137832934,-862.44048895,0.00013596,2]
[335341727,1724137832944,-164.878272,0.00013622,2]
[335341728,1724137832954,-164.878272,0.00013665,2]
[335341729,1724137832965,-297.64961204,0.00013697,2]
[335341730,1724137832978,-238.9120855,0.00013699,2]
[335341731,1724137832989,-194.82337617,0.00013699,2]
[335341732,1724137833000,-164.878272,0.00013707,2]
[335341733,1724137833011,-368.0,0.00013942,2]
[335341734,1724137833021,-306.3384517,0.00013971,2]
[335341735,1724137833031,-634.96737529,0.00014,2]
[335341736,1724137833041,-513.5768568,0.00014147,2]
[335341737,1724137833051,-161.606896,0.00014247,2]
[335341738,1724137833061,-738.054776,0.00014247,2]
[335341739,1724137833071,-422.1184028,0.00014519,2]
[335341740,1724137833081,-1000.0,0.00015,15]
[335341741,1724137833090,-417.95797788,0.00015057,2]
[335341742,1724137833100,-1111.07542891,0.00015747,2]
[335341743,1724137833111,-5329.36596513,0.00015773,2]
[335341744,1724137833121,-151.0,0.000158,2]
[335341745,1724137833131,-500.0,0.000158,2]
[335341746,1724137833141,-500.0,0.000158,2]
[335341747,1724137833151,-500.0,0.000158,2]
[335341748,1724137833161,-500.0,0.000158,2]
[335341749,1724137833170,-500.0,0.000158,2]
[335341750,1724137833180,-500.0,0.000158,2]
[335341751,1724137833189,-500.0,0.000158,2]
[335341752,1724137833199,-500.0,0.000158,2]
[335341753,1724137833210,-500.0,0.000158,2]
[335341754,1724137833220,-500.0,0.000158,2]
[335341755,1724137833229,-500.0,0.000158,2]
[335341756,1724137833239,-500.0,0.000158,2]
[335341757,1724137833249,-500.0,0.000158,2]
[335341758,1724137833259,-258.3913,0.0001589,2]
[335341759,1724137833269,-172.57817428,0.00015905,2]
[335341760,1724137833278,-2950.121699,0.00015905,2]
[335341761,1724137833288,-1303.19327596,0.00015905,2]
[335341762,1724137833301,-368.79669505,0.00015905,2]
[335341763,1724137833311,-19.6237601,0.00015905,2]
[335341764,1724137833323,-131.3762399,0.00015905,2]
[335341765,1724137833333,-151.0,0.00015905,2]
[335341766,1724137833342,-151.0,0.00015905,2]
[335341767,1724137833354,-151.0,0.00015905,2]
[335341768,1724137833365,-54.09752129,0.00015905,2]
[335341769,1724137833382,-96.90247871,0.00015905,2]
[335341770,1724137833394,-151.0,0.00015905,2]
[335341771,1724137833403,-151.0,0.00015905,2]
[335341772,1724137833414,-151.0,0.00015905,2]
[335341773,1724137833423,-150.061,0.00015906,2]
[335341774,1724137833433,-150.446,0.00015906,2]
[335341775,1724137833592,-151.0,0.00015941,2]
[335341776,1724137833603,-200.0,0.00015973,2]
[335341777,1724137833612,-151.0,0.0001598,2]
[335341778,1724137833621,-151.0,0.0001598,2]
[335341779,1724137833632,-151.0,0.0001598,2]
[335341780,1724137833642,-151.0,0.0001598,2]
[335341781,1724137833652,-151.0,0.0001598,2]
[335341782,1724137833662,-151.0,0.0001598,2]
[335341783,1724137833672,-151.0,0.0001598,2]
[335341784,1724137833682,-151.0,0.0001598,2]
[335341785,1724137833693,-151.0,0.0001598,2]
[335341786,1724137833703,-9096.78065872,0.0001598,2]
[335341805,1724137838584,-189.39669743,0.00013025,2]
[335341807,1724137838597,-628.25583744,0.00013697,2]
[335341809,1724137838606,-500.0,0.000158,2]
[335341811,1724137838616,-266.73954726,0.000158,2]
[335341813,1724137838627,-953.45396956,0.00015904,2]
[335341815,1724137838639,-9719.47540908,0.0001598,2]
[335341915,1724137866223,423.77022192,0.0002,120]
[335341938,1724138274941,-292.57,0.00010959,2]
[335341939,1724138274969,-243.81,0.00010959,2]
[335341940,1724138275000,-203.17,0.00010959,2]
[335341941,1724138275028,-169.31,0.00010959,2]
[335341942,1724138277434,91.14,0.00010959,2]
[335341943,1724138279736,-755.44,0.00010959,2]
[335341946,1724138318701,244.56,0.00010959,2]
[335341947,1724138328768,-1000.0,0.00010959,2]
[335341948,1724138331385,-427.42997101,0.00010959,2]
[335341950,1724138348664,-4982.61711646,0.00013051,2]
[335341953,1724138406085,-1671.98997101,0.00013283,2]
[335341954,1724138406112,-2328.01002899,0.00013283,2]
[335341957,1724138430832,17.38288354,0.0001305,2]
[335341959,1724138457162,-2578.56063413,0.0001305,2]
[335341962,1724138494199,421.43936587,0.0001305,2]
[335341963,1724138511089,-1250.55060514,0.0001305,2]
[335341964,1724138549931,-810.66321171,0.00013477,2]
[335341965,1724138549957,-154.76012181,0.00013496,2]
[335342003,1724139031773,-1202.9815259,0.00013496,2]
[335342004,1724139031785,-2595.94351767,0.00013597,2]
[335342005,1724139031795,-216.3778621,0.00013599,2]
[335342007,1724139031804,-167.94520241,0.00013697,2]
[335342009,1724139031813,-750.0,0.00014247,2]
[335342011,1724139031823,-160.997073,0.00014247,2]
[335342012,1724139031834,-1000.0,0.00015,15]